bitfinex/quotes_BTCUSD_20230405
["timestamp","ask_amount","ask_price","bid_price","bid_amount"]
[1680665903085,0.01351,28468.0,28466.0,0.017624]
[1680665903307,0.01321,28468.0,28467.0,6e-05]
[1680665903521,0.01321,28468.0,28467.0,0.017624]
[1680665903958,0.01321,28468.0,28467.0,0.017564]
[1680665904621,0.01321,28468.0,28467.0,0.018624]
[1680665904838,0.01321,28468.0,28467.0,0.018564]
[1680665906106,0.09531,28468.0,28467.0,0.018564]
[1680665906520,0.09561,28468.0,28467.0,0.018564]
[1680665906773,0.09488721,28468.0,28467.0,0.018564]
[1680665908711,0.01278721,28468.0,28467.0,0.018564]
[1680665908937,0.01278721,28468.0,28467.0,0.023764]
[1680665909155,0.01278721,28468.0,28467.0,0.023824]
[1680665909401,0.01278721,28468.0,28467.0,0.018624]
[1680665909620,0.01278721,28468.0,28467.0,0.00106]
[1680665910296,0.01278721,28468.0,28467.0,0.001]
[1680665911609,0.09488721,28468.0,28467.0,0.001]
[1680665911835,0.14696521,28468.0,28467.0,0.001]
[1680665912059,0.14598921,28468.0,28467.0,0.001]
[1680665912281,0.09488721,28468.0,28467.0,0.001]
[1680665912508,0.14770621,28468.0,28465.0,6e-05]
[1680665912737,0.01278721,28468.0,28467.0,0.028]
[1680665912960,0.09508721,28468.0,28467.0,0.028]
[1680665914402,0.14540221,28468.0,28467.0,0.028]
[1680665914621,0.09508721,28468.0,28467.0,0.028]
[1680665914866,0.14725221,28468.0,28467.0,0.028]
[1680665915394,0.14225221,28468.0,28467.0,0.028]
[1680665917471,0.09008721,28468.0,28467.0,0.028]
[1680665917881,0.09008721,28468.0,28467.0,0.045744]
[1680665918196,0.09008721,28468.0,28467.0,0.02818]
[1680665918619,0.09008721,28468.0,28467.0,0.045744]
[1680665918840,0.09008721,28468.0,28467.0,0.02818]
[1680665919482,0.00778721,28468.0,28467.0,0.02818]
[1680665919678,0.00778721,28468.0,28467.0,0.045744]
[1680665920146,0.00778721,28468.0,28467.0,0.02818]
[1680665920364,0.00778721,28468.0,28467.0,0.045744]
[1680665921059,0.00778721,28468.0,28467.0,0.02818]
[1680665922163,0.00778721,28468.0,28467.0,0.028]
[1680665923561,0.05767021,28468.0,28467.0,0.028]
[1680665924638,0.13957021,28468.0,28467.0,0.028]
[1680665926893,0.14032021,28468.0,28467.0,0.028]
[1680665929979,0.14136121,28468.0,28467.0,0.028]
[1680665930242,0.08968721,28468.0,28467.0,0.028]
[1680665932165,0.44439777,28468.0,28467.0,0.028]
[1680665932371,0.49684977,28468.0,28467.0,0.028]
[1680665935029,0.14213921,28468.0,28467.0,0.028]
[1680665935260,0.08968721,28468.0,28467.0,0.028]
[1680665937947,0.08960041,28468.0,28467.0,0.028]
[1680665939997,0.08180041,28468.0,28467.0,0.028]
[1680665940268,0.07610041,28468.0,28467.0,0.028]
[1680665942200,0.0738,28468.0,28467.0,0.028]
[1680665942626,0.0738,28468.0,28467.0,0.02789926]
[1680665943716,0.0738,28468.0,28467.0,0.04546326]
[1680665944588,0.0738,28468.0,28467.0,0.02789926]
[1680665945215,0.0738,28468.0,28467.0,0.11187556]
[1680665945407,0.0738,28468.0,28467.0,0.12943956]
[1680665948589,0.0738,28468.0,28467.0,0.12904056]
[1680665949671,0.0738,28469.0,28467.0,0.12904056]
[1680665951400,0.074,28472.0,28467.0,0.12904056]
[1680665951580,0.074,28472.0,28467.0,0.1015403]
[1680665951839,0.074,28472.0,28467.0,0.25550475]
[1680665952086,0.074,28472.0,28467.0,0.22750475]
[1680665952301,0.074,28472.0,28467.0,0.25550475]
[1680665952516,0.074,28472.0,28468.0,1.1]
[1680665952740,0.074,28472.0,28469.0,0.017562]
[1680665952957,0.074,28472.0,28469.0,0.1015983]
[1680665954573,0.074,28472.0,28469.0,0.0840363]
[1680665954796,0.074,28472.0,28469.0,6e-05]
[1680665955009,0.074,28472.0,28469.0,0.01506]
[1680665955861,0.0736,28470.0,28469.0,0.01506]
[1680665956280,0.0736,28470.0,28469.0,0.015]
[1680665956689,0.0736,28470.0,28469.0,0.0013]
[1680665956900,0.0736,28470.0,28469.0,0.0163]
[1680665962804,0.0736,28470.0,28469.0,0.01636]
[1680665964324,0.0736,28470.0,28469.0,0.01506]
[1680665964563,0.01,28474.0,28472.0,1.1]
[1680665964834,0.01,28474.0,28473.0,0.46868034]
[1680665965071,0.02310001,28475.0,28473.0,0.8521179]
[1680665965072,0.00071465,28475.0,28473.0,0.8521179]
[1680665965303,0.00071465,28475.0,28474.0,1.60910819]
[1680665965529,0.00071465,28475.0,28474.0,0.26747872]
[1680665965756,0.00071465,28475.0,28474.0,0.08410332]
[1680665965980,0.00071465,28475.0,28474.0,6e-05]
[1680665967549,0.00071465,28475.0,28474.0,0.02706]
[1680665967768,0.00071465,28475.0,28473.0,6e-05]
[1680665967990,0.00071465,28475.0,28474.0,0.00706]
[1680665968213,0.00071465,28475.0,28473.0,6e-05]
[1680665968432,0.00071465,28475.0,28474.0,0.014]
[1680665970325,0.00071465,28475.0,28473.0,6e-05]
[1680665970754,0.00071465,28475.0,28474.0,0.007]
[1680665971369,0.00071465,28475.0,28473.0,6e-05]
[1680665971575,0.00071465,28475.0,28474.0,0.007]
[1680665972201,0.00071465,28475.0,28474.0,0.00706]
[1680665972416,0.00071465,28475.0,28474.0,0.007]
[1680665972826,0.00071465,28475.0,28474.0,0.00706]
[1680665973244,0.00071465,28475.0,28474.0,6e-05]
[1680665973643,0.00071465,28475.0,28474.0,0.02106]
[1680665976254,0.00071465,28475.0,28474.0,0.038619]
[1680665976913,0.00071465,28475.0,28474.0,0.017619]
[1680665977124,0.00071465,28475.0,28474.0,0.038619]
[1680665977866,0.00071465,28475.0,28474.0,0.038559]
[1680665978957,0.00071465,28475.0,28474.0,0.021]
[1680665979866,0.00071465,28475.0,28474.0,0.038559]
[1680665980037,0.00071465,28475.0,28474.0,1.86322956]
[1680665980244,0.00071465,28475.0,28474.0,1.45612527]
[1680665980426,0.00071465,28475.0,28474.0,1.43512527]
[1680665980639,0.00071465,28475.0,28474.0,1.444619]
[1680665980855,0.00071465,28475.0,28474.0,1.417619]
[1680665981065,0.00071465,28475.0,28474.0,1.445619]
[1680665982565,0.00071465,28475.0,28474.0,1.228]
[1680665982776,0.00071465,28475.0,28474.0,1.245619]
[1680665983392,0.00071465,28475.0,28474.0,1.145619]
[1680665983590,0.00071465,28475.0,28474.0,0.045619]
[1680665985475,0.00071465,28475.0,28474.0,0.017619]
[1680665985773,0.00071465,28475.0,28474.0,0.045619]
[1680665986118,0.00071465,28475.0,28474.0,0.045559]
[1680665987154,0.00071465,28475.0,28474.0,0.017559]
[1680665987360,0.00071465,28475.0,28474.0,0.045559]
[1680665987570,0.00071465,28475.0,28474.0,0.017559]
[1680665987798,0.00071465,28475.0,28474.0,1.117559]
[1680665987985,0.00071465,28475.0,28474.0,1.417559]
[1680665988642,0.00071465,28475.0,28474.0,1.445559]
[1680665988860,0.00071465,28475.0,28474.0,1.417559]
[1680665989070,0.00071465,28475.0,28474.0,1.445559]
[1680665989259,0.00071465,28475.0,28474.0,1.417559]
[1680665989502,0.00071465,28475.0,28474.0,1.445559]
[1680665990379,0.00071465,28475.0,28474.0,1.417559]
[1680665990593,0.00071465,28475.0,28474.0,1.445559]
[1680665994465,0.00071465,28475.0,28474.0,1.52960232]
[1680665995333,0.00071465,28475.0,28474.0,1.79677341]
[1680665995503,0.00071465,28475.0,28474.0,1.67070717]
[1680665995918,0.00071465,28475.0,28474.0,1.64270717]
[1680665996131,0.00071465,28475.0,28474.0,1.67070717]
[1680665998648,0.00071465,28475.0,28474.0,2.71127441]
[1680665998870,0.00071465,28475.0,28474.0,2.87936388]
[1680665999314,0.00071465,28475.0,28474.0,2.92139983]
[1680665999524,0.00071465,28475.0,28474.0,3.00319983]
[1680666000465,0.00071465,28475.0,28474.0,2.97519983]
[1680666000688,0.00071465,28475.0,28474.0,3.00319983]
[1680666004425,0.00060297,28475.0,28474.0,3.00319983]
[1680666004621,0.00060297,28475.0,28474.0,2.79307441]
[1680666004761,0.00060297,28475.0,28474.0,2.09307441]
[1680666004996,0.00060297,28475.0,28474.0,2.2750254]
[1680666005195,0.00060297,28475.0,28474.0,2.3030254]
[1680666006000,0.00060297,28475.0,28474.0,2.47098023]
[1680666006661,0.00060297,28475.0,28474.0,2.68918023]
[1680666006801,0.00060297,28475.0,28474.0,2.5212254]
[1680666007877,0.00060297,28475.0,28474.0,2.31127441]
[1680666013523,0.01870298,28476.0,28474.0,2.31127441]
[1680666013740,0.01870298,28476.0,28475.0,1.02461056]
[1680666013957,0.01870298,28476.0,28475.0,1.21839241]
[1680666014350,0.01870298,28476.0,28475.0,1.42855185]
[1680666014698,0.01870298,28476.0,28475.0,1.21839241]
[1680666015314,0.01870298,28476.0,28475.0,1.42856766]
[1680666015750,0.01870298,28476.0,28475.0,1.45656766]
[1680666016544,0.01870298,28476.0,28475.0,1.24639241]
[1680666018276,0.01870298,28476.0,28475.0,1.49878483]
[1680666018702,0.01870298,28476.0,28475.0,1.24639241]
[1680666018916,0.01870298,28476.0,28475.0,1.08670118]
[1680666019137,0.01870298,28476.0,28475.0,0.52178185]
[1680666020215,0.01870298,28476.0,28475.0,0.46910485]
[1680666020424,0.01870298,28476.0,28475.0,0.48666385]
[1680666027933,0.01370298,28476.0,28475.0,0.48666385]
[1680666028782,0.01370298,28476.0,28475.0,0.52186385]
[1680666029927,0.047775,28477.0,28475.0,0.52186385]
[1680666030352,0.047775,28477.0,28476.0,0.14110485]
[1680666030550,0.047775,28477.0,28476.0,0.19377985]
[1680666031457,0.047775,28477.0,28476.0,0.22177985]
[1680666034263,0.02321,28479.0,28476.0,0.25377985]
[1680666034600,0.02321,28479.0,28478.0,0.21039018]
[1680666034823,0.02321,28479.0,28478.0,0.40416603]
[1680666036727,0.02321,28479.0,28478.0,0.43216603]
[1680666037606,0.02321,28479.0,28478.0,0.24606899]
[1680666040055,0.02321,28479.0,28478.0,0.27566899]
[1680666040273,0.02321,28479.0,28478.0,0.60608641]
[1680666040704,0.02321,28479.0,28478.0,0.70608641]
[1680666041178,0.02321,28479.0,28478.0,1.07598641]
[1680666041395,0.02310001,28482.0,28478.0,2.72837883]
[1680666041619,0.02310001,28482.0,28481.0,0.16831658]
[1680666041836,0.02310001,28482.0,28481.0,0.22098258]
[1680666042055,0.02310001,28482.0,28481.0,0.36208743]
[1680666042703,0.02310001,28482.0,28481.0,0.38308743]
[1680666042929,0.02310001,28482.0,28481.0,0.36208743]
[1680666043145,0.02310001,28482.0,28481.0,0.38908743]
[1680666043606,0.02310001,28482.0,28481.0,0.3469879]
[1680666043824,0.02310001,28482.0,28481.0,0.51530448]
[1680666044263,0.02310001,28482.0,28481.0,0.38908743]
[1680666044472,0.02310001,28482.0,28481.0,0.41758743]
[1680666045407,0.02310001,28482.0,28481.0,0.54379714]
[1680666045632,0.02310001,28482.0,28481.0,0.34036956]
[1680666045850,0.02310001,28482.0,28481.0,0.19926471]
[1680666048505,0.02310001,28482.0,28481.0,0.46757011]
[1680666048760,0.02310001,28482.0,28481.0,0.19925353]
[1680666049200,0.01810001,28482.0,28481.0,0.19925353]
[1680666049413,0.01810001,28482.0,28481.0,0.17225353]
[1680666049599,0.01810001,28482.0,28481.0,0.20025353]
[1680666052427,0.01810001,28482.0,28481.0,1.46857011]
[1680666052634,0.01810001,28482.0,28481.0,1.78327281]
[1680666054438,0.02351,28486.0,28481.0,1.78327281]
[1680666054439,0.02321,28489.0,28484.0,0.3699]
[1680666054647,0.02321,28492.0,28488.0,0.12612822]
[1680666054871,0.02321,28492.0,28490.0,0.08408273]
[1680666055093,0.0735,28491.0,28490.0,0.08408273]
[1680666055316,0.0735,28491.0,28490.0,0.22775583]
[1680666055528,0.0735,28491.0,28490.0,0.017549]
[1680666056185,0.0735,28491.0,28490.0,0.049849]
[1680666056387,0.01378125,28491.0,28490.0,0.049849]
[1680666056586,0.01378125,28491.0,28490.0,0.13393173]
[1680666056826,0.01378125,28491.0,28490.0,0.049849]
[1680666058131,0.01378125,28491.0,28490.0,0.076849]
[1680666059428,0.02321,28492.0,28490.0,0.076849]
[1680666059646,0.09651,28492.0,28490.0,0.076849]
[1680666060392,0.02321,28492.0,28490.0,0.076849]
[1680666060828,0.02321,28492.0,28490.0,0.049849]
[1680666061049,0.09681,28492.0,28490.0,0.077849]
[1680666061276,0.09681,28492.0,28490.0,0.377849]
[1680666061496,0.09675,28492.0,28490.0,0.377849]
[1680666062367,0.09675,28492.0,28490.0,0.377969]
[1680666065900,0.02315,28492.0,28490.0,0.377969]
[1680666066111,0.02315,28492.0,28490.0,0.46193173]
[1680666066329,0.02315,28492.0,28490.0,0.377849]
[1680666066779,0.02315,28492.0,28490.0,0.81676229]
[1680666066990,0.02315,28492.0,28491.0,0.08408273]
[1680666067224,0.02315,28492.0,28491.0,0.98878439]
[1680666067441,0.02315,28492.0,28491.0,1.18034656]
[1680666067655,0.02315,28492.0,28491.0,1.31304656]
[1680666067897,0.00870375,28495.0,28494.0,1.1]
[1680666068107,0.00870375,28495.0,28494.0,1.522832]
[1680666069419,0.00870375,28495.0,28494.0,1.91024256]
[1680666069642,0.00870375,28495.0,28494.0,7.44024256]
[1680666069880,0.00870375,28495.0,28494.0,7.58724256]
[1680666070101,0.00870375,28495.0,28494.0,7.61656256]
[1680666070321,0.00870375,28495.0,28494.0,7.98646256]
[1680666070566,0.00870375,28495.0,28494.0,8.37596883]
[1680666070792,0.0174075,28499.0,28497.0,1.1]
[1680666071012,0.0174075,28499.0,28498.0,0.352635]
[1680666071232,0.0174075,28499.0,28498.0,0.385335]
[1680666071451,0.0174075,28499.0,28498.0,0.84004556]
[1680666071685,0.0174075,28499.0,28498.0,1.10994556]
[1680666072800,0.0174075,28499.0,28498.0,1.13794556]
[1680666073271,0.0174075,28499.0,28498.0,1.50625183]
[1680666074394,0.0174075,28499.0,28498.0,1.80057183]
[1680666075753,0.0174075,28499.0,28498.0,1.77257183]
[1680666075996,0.0174075,28499.0,28498.0,1.80057183]
[1680666076218,0.0174075,28499.0,28498.0,1.84647183]
[1680666076443,0.0174075,28499.0,28498.0,1.80057183]
[1680666076676,0.00548973,28499.0,28498.0,2.01077866]
[1680666076908,0.02321,28502.0,28501.0,1.8699]
[1680666077133,0.02321,28502.0,28501.0,2.64741156]
[1680666078470,0.02321,28502.0,28501.0,2.70531156]
[1680666079379,0.02321,28502.0,28501.0,2.67731156]
[1680666080052,0.02321,28502.0,28501.0,2.70531156]
[1680666080278,0.02321,28502.0,28501.0,2.67731156]
[1680666080498,0.02321,28502.0,28501.0,2.72281783]
[1680666081177,0.02321,28502.0,28501.0,2.69481783]
[1680666082118,0.02321,28502.0,28501.0,2.72281783]
[1680666082583,0.02321,28502.0,28501.0,2.32281783]
[1680666082806,0.02321,28502.0,28501.0,2.30531156]
[1680666083733,0.02321,28502.0,28501.0,1.93541156]
[1680666083968,0.02321,28502.0,28501.0,0.110529]
[1680666084201,0.06181,28502.0,28501.0,0.0579]
[1680666084911,0.06181,28502.0,28501.0,0.0299]
[1680666085372,0.06208,28502.0,28501.0,0.0579]
[1680666085597,0.06232,28502.0,28501.0,0.0299]
[1680666085858,0.06232,28502.0,28501.0,0.0309]
[1680666090849,0.05802,28502.0,28501.0,0.0309]
[1680666091531,0.05751,28502.0,28501.0,0.0309]
[1680666093332,0.05751,28502.0,28501.0,0.048443]
[1680666093548,0.05802,28502.0,28501.0,0.048443]
[1680666094420,0.41273056,28502.0,28501.0,0.0309]
[1680666094645,0.46219056,28502.0,28501.0,0.0299]
[1680666094859,0.46219056,28502.0,28501.0,0.0309]
[1680666095083,1.72494114,28502.0,28501.0,0.0309]
[1680666095306,1.73722014,28502.0,28501.0,0.0309]
[1680666096215,0.47446956,28502.0,28501.0,0.0309]
[1680666096424,0.47446956,28502.0,28501.0,0.0299]
[1680666096657,0.46419056,28502.0,28501.0,0.0319]
[1680666096866,0.47446956,28502.0,28501.0,0.0299]
[1680666097077,0.47646956,28502.0,28501.0,0.0319]
[1680666099944,0.47446956,28502.0,28501.0,0.0299]
[1680666100062,0.47646956,28502.0,28501.0,0.0319]
[1680666101302,0.47640252,28502.0,28501.0,0.0319]
[1680666101743,0.47640252,28502.0,28501.0,0.002]
[1680666102175,0.47440252,28502.0,28494.0,5.53]
[1680666102398,0.03793196,28502.0,28501.0,0.002]
[1680666102612,0.11308196,28502.0,28501.0,0.002]
[1680666103044,0.12536096,28502.0,28501.0,0.002]
[1680666103260,0.11308196,28502.0,28501.0,0.002]
[1680666103707,0.12536096,28502.0,28501.0,0.002]
[1680666104406,1.3882213,28502.0,28501.0,0.002]
[1680666104628,2.11334186,28502.0,28501.0,0.002]
[1680666104849,2.42184186,28502.0,28501.0,0.002]
[1680666105323,2.50487451,28502.0,28501.0,0.002]
[1680666105550,2.42184186,28502.0,28501.0,0.002]
[1680666106212,0.4699,28501.0,28492.0,0.028247]
[1680666106447,0.0344,28493.0,28492.0,0.028247]
[1680666106661,0.17629681,28493.0,28492.0,0.028247]
[1680666106875,0.0344,28493.0,28492.0,0.028247]
[1680666107535,0.0344,28493.0,28492.0,0.055247]
[1680666107744,0.0344,28493.0,28492.0,0.079447]
[1680666108828,0.0342,28494.0,28492.0,0.052447]
[1680666109015,0.0342,28494.0,28492.0,0.079447]
[1680666109711,0.35471056,28498.0,28492.0,0.079447]
[1680666109712,0.38901056,28493.0,28492.0,0.079447]
[1680666109935,0.38901056,28493.0,28492.0,0.052447]
[1680666110160,0.38901056,28493.0,28492.0,0.080447]
[1680666110383,0.38901056,28493.0,28492.0,0.052447]
[1680666110606,0.44143056,28493.0,28492.0,0.080387]
[1680666110835,0.45371356,28493.0,28492.0,0.052267]
[1680666111271,0.44961356,28493.0,28492.0,0.052267]
[1680666111528,0.44961356,28493.0,28492.0,0.028067]
[1680666111717,0.45461356,28493.0,28492.0,0.055367]
[1680666113011,0.45461356,28493.0,28492.0,0.0273]
[1680666113659,0.82451356,28493.0,28492.0,0.0273]
[1680666114104,0.91942152,28493.0,28492.0,0.0273]
[1680666114313,1.21942152,28493.0,28492.0,0.0273]
[1680666114523,1.22792152,28493.0,28492.0,0.002]
[1680666115171,1.13301356,28493.0,28492.0,0.002]
[1680666115499,0.3699,28491.0,28487.0,0.00018]
[1680666115718,0.0301,28488.0,28487.0,0.00018]
[1680666115944,0.43950356,28488.0,28486.0,0.00012]
[1680666116161,0.38491056,28487.0,28486.0,0.00018]
[1680666116595,0.38491056,28487.0,28485.0,0.00018]
[1680666116812,0.0301,28486.0,28485.0,0.00018]
[1680666117017,0.38481056,28486.0,28485.0,0.00018]
[1680666117923,0.38496056,28486.0,28481.0,0.0480939]
[1680666118145,0.0302,28485.0,28482.0,0.017554]
[1680666118383,0.03071,28485.0,28482.0,0.017554]
[1680666118589,0.0302,28485.0,28482.0,0.017554]
[1680666119011,0.03035,28485.0,28482.0,0.017554]
[1680666119214,0.0312,28485.0,28482.0,0.027554]
[1680666119405,0.03071,28485.0,28482.0,0.017554]
[1680666119668,0.0312,28485.0,28482.0,0.027554]
[1680666119857,0.03171,28485.0,28482.0,0.027554]
[1680666120076,0.03162,28485.0,28480.0,0.0541433]
[1680666120289,0.03162,28485.0,28482.0,0.017554]
[1680666120290,0.14340681,28485.0,28482.0,0.017554]
[1680666120508,0.00051,28485.0,28482.0,0.032054]
[1680666120942,0.00151,28485.0,28482.0,0.037054]
[1680666121132,0.00051,28485.0,28482.0,0.032054]
[1680666121471,0.00151,28485.0,28482.0,0.037054]
[1680666121907,0.00051,28485.0,28482.0,0.032054]
[1680666122184,0.001,28485.0,28483.0,0.35471056]
[1680666122408,0.00051,28491.0,28484.0,0.122874]
[1680666122630,0.00051,28495.0,28485.0,0.3262]
[1680666122851,0.35471056,28494.0,28488.0,0.052653]
[1680666123073,0.35522056,28494.0,28488.0,0.052653]
[1680666123283,0.35522056,28494.0,28491.0,0.0138]
[1680666123521,0.35522056,28494.0,28492.0,0.017548]
[1680666123955,0.35722056,28494.0,28492.0,0.017548]
[1680666124163,0.35522056,28494.0,28492.0,0.017548]
[1680666124627,0.00051,28494.0,28492.0,0.017548]
[1680666124871,0.006,28494.0,28493.0,0.0144]
[1680666125076,0.006,28494.0,28493.0,0.031948]
[1680666126674,0.00051,28498.0,28493.0,0.031948]
[1680666126917,0.012,28494.0,28493.0,0.018548]
[1680666131201,0.00051,28498.0,28493.0,0.017548]
[1680666131432,0.002,28494.0,28493.0,0.032548]
[1680666132301,0.00051,28497.0,28493.0,0.017548]
[1680666132526,0.35522056,28500.0,28493.0,0.032548]
[1680666132751,0.002,28494.0,28493.0,0.032548]
[1680666132955,0.002,28494.0,28493.0,0.11636296]
[1680666133171,0.00051,28498.0,28493.0,0.40136296]
[1680666133590,0.002,28494.0,28493.0,0.41636296]
[1680666133803,0.002,28494.0,28493.0,0.55681151]
[1680666134023,0.002,28494.0,28493.0,0.41636296]
[1680666135515,0.002,28494.0,28493.0,0.51636296]
[1680666135713,0.002,28494.0,28493.0,0.78246027]
[1680666135913,0.002,28494.0,28493.0,0.6567491]
[1680666136116,0.002,28494.0,28493.0,0.78246027]
[1680666136316,0.002,28494.0,28493.0,1.05335587]
[1680666137098,0.002,28494.0,28493.0,1.40415587]
[1680666137291,0.02314296,28502.0,28493.0,1.40415587]
[1680666137292,0.02314296,28502.0,28496.0,1.1]
[1680666137553,0.02314296,28502.0,28497.0,0.422815]
[1680666137784,0.02314296,28502.0,28497.0,0.50663526]
[1680666138218,0.02314296,28502.0,28497.0,0.63236565]
[1680666138668,0.02302525,28502.0,28498.0,0.08382026]
[1680666138909,0.02302525,28502.0,28499.0,0.052632]
[1680666140002,0.02302525,28502.0,28499.0,0.080632]
[1680666140231,0.02302525,28502.0,28499.0,0.08056945]
[1680666140450,0.02302525,28502.0,28499.0,0.05256945]
[1680666140674,0.02302525,28502.0,28500.0,0.1]
[1680666140899,0.02302525,28502.0,28501.0,0.122801]
[1680666141761,0.02302525,28502.0,28501.0,0.12270717]
[1680666142642,0.02402525,28502.0,28501.0,0.12270717]
[1680666142880,0.02302525,28502.0,28501.0,0.12270717]
[1680666143070,0.02302525,28502.0,28501.0,0.14070717]
[1680666145304,0.02302525,28502.0,28501.0,0.12270717]
[1680666145514,0.02302525,28502.0,28501.0,0.44070717]
[1680666145727,0.02302525,28502.0,28501.0,0.54070717]
[1680666147778,0.02302525,28502.0,28501.0,0.52270717]
[1680666147991,0.02302525,28502.0,28501.0,0.55070717]
[1680666149209,0.02302525,28502.0,28501.0,0.52270717]
[1680666149407,0.02302525,28502.0,28501.0,0.63260717]
[1680666150538,0.02302525,28502.0,28501.0,0.60460717]
[1680666150751,0.02302525,28502.0,28501.0,0.63260717]
[1680666150964,0.02302525,28502.0,28501.0,0.60460717]
[1680666151175,0.02302525,28502.0,28501.0,0.63260717]
[1680666152038,0.02302525,28502.0,28501.0,0.98731773]
[1680666155018,0.02302525,28502.0,28501.0,0.95931773]
[1680666155236,0.02302525,28502.0,28501.0,2.05888173]
[1680666159157,0.02302525,28502.0,28501.0,0.45070717]
[1680666161781,0.02302525,28502.0,28501.0,0.44870717]
[1680666164949,0.02302525,28502.0,28501.0,0.54870717]
[1680666165155,0.02302525,28502.0,28501.0,0.44870717]
[1680666167432,0.02302525,28502.0,28501.0,0.58891128]
[1680666174046,0.02302525,28502.0,28501.0,0.67273154]
[1680666174268,0.02302525,28502.0,28501.0,0.71464167]
[1680666175849,0.02302525,28502.0,28501.0,0.79845773]
[1680666176058,0.02302525,28502.0,28501.0,0.79845765]
[1680666176275,0.02302525,28502.0,28501.0,0.75708223]
[1680666178412,0.02302525,28502.0,28501.0,0.79912497]
[1680666179495,0.02302525,28502.0,28501.0,0.58891128]
[1680666179679,0.02302525,28502.0,28501.0,0.79869425]
[1680666180090,0.02302525,28502.0,28501.0,0.58891128]
[1680666182350,0.02302525,28502.0,28501.0,0.28891128]
[1680666182563,0.02302525,28502.0,28501.0,0.33625037]
[1680666182564,0.05294722,28502.0,28501.0,0.33625037]
[1680666182786,0.05294722,28502.0,28501.0,0.29424183]
[1680666183005,0.05294722,28502.0,28501.0,0.16820411]
[1680666183215,0.05294722,28502.0,28501.0,0.11202632]
[1680666183451,0.05294722,28502.0,28501.0,0.25222195]
[1680666183669,0.05294722,28502.0,28501.0,0.11202632]
[1680666183875,0.05294722,28502.0,28501.0,0.23806404]
[1680666184088,0.05294722,28502.0,28501.0,0.35025935]
[1680666184306,0.05294722,28502.0,28501.0,0.26623303]
[1680666184894,0.05494722,28502.0,28501.0,0.26723303]
[1680666185092,0.05294722,28502.0,28501.0,0.35026496]
[1680666185291,0.05294722,28502.0,28501.0,0.08403193]
[1680666185544,0.05494722,28502.0,28501.0,0.08603193]
[1680666185753,0.05494722,28502.0,28501.0,0.21206965]
[1680666185963,0.05494722,28502.0,28501.0,0.08603193]
[1680666186157,0.40965778,28502.0,28501.0,0.002]
[1680666186366,0.41016778,28502.0,28501.0,0.08603193]
[1680666187009,0.45118456,28502.0,28501.0,0.002]
[1680666187222,0.51438856,28502.0,28501.0,0.002]
[1680666187874,0.10638222,28502.0,28501.0,0.002]
[1680666188092,0.05545722,28502.0,28501.0,0.019543]
[1680666189007,0.05545722,28502.0,28501.0,0.22961265]
[1680666189430,0.05494722,28502.0,28501.0,0.14558072]
[1680666189888,0.13159472,28505.0,28501.0,0.14558072]
[1680666190115,0.35471056,28504.0,28502.0,0.08398377]
[1680666190330,0.35471056,28504.0,28503.0,0.017542]
[1680666190503,0.38491056,28504.0,28503.0,0.017542]
[1680666191271,0.38491056,28504.0,28503.0,0.018542]
[1680666192091,0.38491056,28504.0,28503.0,0.018542]
[1680666192952,0.38491056,28504.0,28503.0,0.001]
[1680666193355,0.38491056,28504.0,28502.0,0.017542]
[1680666193562,0.0302,28504.0,28503.0,0.001]
[1680666193762,0.0302,28504.0,28503.0,0.018542]
[1680666194409,0.0302,28504.0,28503.0,0.017542]
[1680666194614,0.0302,28504.0,28503.0,0.022542]
[1680666194841,0.0302,28504.0,28503.0,0.017542]
[1680666195048,0.0302,28504.0,28503.0,0.045542]
[1680666195249,0.0302,28504.0,28503.0,0.028]
[1680666195478,0.0302,28504.0,28503.0,0.045542]
[1680666199075,0.0302,28505.0,28503.0,0.045542]
[1680666199455,0.0302,28504.0,28503.0,0.045542]
[1680666199896,0.0302,28504.0,28503.0,0.017542]
[1680666200650,0.38491056,28504.0,28503.0,0.028]
[1680666200885,0.43720956,28504.0,28502.0,0.00018]
[1680666201129,0.0003,28506.0,28503.0,0.028]
[1680666201369,0.0302,28504.0,28501.0,0.08416377]
[1680666201620,0.0302,28503.0,28501.0,0.22762449]
[1680666201848,0.0302,28503.0,28501.0,0.10145292]
[1680666202247,0.0302,28503.0,28502.0,0.0024]
[1680666203420,0.0302,28503.0,28502.0,0.0144]
[1680666203631,0.07997,28503.0,28502.0,0.012]
[1680666203863,0.07997,28503.0,28502.0,0.0144]
[1680666204105,0.0305,28503.0,28502.0,0.0144]
[1680666204588,0.082231,28503.0,28502.0,0.0144]
[1680666204847,0.082531,28503.0,28502.0,0.0144]
[1680666205065,0.086685,28503.0,28502.0,0.0144]
[1680666205502,0.086685,28503.0,28502.0,0.0024]
[1680666205719,0.089685,28503.0,28502.0,0.0034]
[1680666206590,0.0332,28503.0,28502.0,0.0034]
[1680666208368,0.38791056,28503.0,28502.0,0.0034]
[1680666208554,0.38821056,28503.0,28502.0,0.0034]
[1680666209417,0.0335,28503.0,28502.0,0.0034]
[1680666209544,0.0332,28503.0,28502.0,0.020942]
[1680666210817,0.0237,28503.0,28502.0,0.020942]
[1680666218752,0.003,28503.0,28502.0,0.020942]
[1680666219195,0.003,28503.0,28502.0,0.0034]
[1680666219392,0.35771056,28503.0,28502.0,0.0034]
[1680666219597,0.37871056,28503.0,28502.0,0.0034]
[1680666220617,0.42997456,28503.0,28502.0,0.0034]
[1680666220988,0.37871056,28503.0,28502.0,0.0034]
[1680666224507,0.37859182,28503.0,28502.0,0.0034]
[1680666224657,0.37829182,28503.0,28502.0,0.0034]
[1680666227687,0.37829182,28503.0,28502.0,0.08735573]
[1680666227895,0.37829182,28503.0,28502.0,0.0034]
[1680666231022,0.37959182,28503.0,28502.0,0.0034]
[1680666231441,0.43030282,28503.0,28502.0,0.0034]
[1680666231859,0.37959182,28503.0,28502.0,0.0034]
[1680666233530,0.37959182,28503.0,28502.0,0.08735573]
[1680666234324,0.37989182,28503.0,28501.0,0.05827126]
[1680666234526,0.35789182,28503.0,28502.0,0.0048]
[1680666234726,0.37989182,28503.0,28502.0,0.0048]
[1680666234898,0.02488126,28503.0,28502.0,0.022342]
[1680666235323,0.00288126,28503.0,28502.0,0.022342]